[Event "*** Titled Tuesday Blitz"]
[Site "Chess.com"]
[Date "2020.05.12"]
[Round "3"]
[White "Elshan1985"]
[Black "ama18"]
[Result "1-0"]
[WhiteElo "2731"]
[BlackElo "2517"]
[TimeControl "180+1"]
[EndTime "10:28:55 PDT"]
[Termination "Elshan1985 won on time"]

1. d4 {[%clk 0:03:00.9]} 1... Nf6 {[%clk 0:02:59.9]} 2. Bg5 {[%clk 0:02:59.8]}
2... e6 {[%clk 0:02:59.2]} 3. Nd2 {[%clk 0:02:59.3]} 3... d5 {[%clk 0:02:53.3]}
4. e3 {[%clk 0:02:59.2]} 4... c5 {[%clk 0:02:49]} 5. c3 {[%clk 0:02:59.3]} 5...
Nc6 {[%clk 0:02:47.5]} 6. f4 {[%clk 0:02:57.7]} 6... h6 {[%clk 0:02:45.7]} 7.
Bh4 {[%clk 0:02:56.9]} 7... Be7 {[%clk 0:02:45.7]} 8. Ngf3 {[%clk 0:02:56.1]}
8... Ne4 {[%clk 0:02:34.7]} 9. Bxe7 {[%clk 0:02:54.9]} 9... Qxe7 {[%clk
0:02:33.9]} 10. Bd3 {[%clk 0:02:51.7]} 10... f5 {[%clk 0:02:32.8]} 11. O-O
{[%clk 0:02:49.6]} 11... O-O {[%clk 0:02:32.2]} 12. Bb5 {[%clk 0:02:47.6]} 12...
Nd8 {[%clk 0:02:27]} 13. Ne5 {[%clk 0:02:44.1]} 13... Qf6 {[%clk 0:02:15.3]} 14.
Bd3 {[%clk 0:02:32.1]} 14... cxd4 {[%clk 0:02:14.8]} 15. exd4 {[%clk 0:02:31]}
15... Nf7 {[%clk 0:02:13.3]} 16. Ndf3 {[%clk 0:02:31.4]} 16... g5 {[%clk
0:01:57.1]} 17. Nxf7 {[%clk 0:02:27.9]} 17... Rxf7 {[%clk 0:01:57.3]} 18. Ne5
{[%clk 0:02:19.6]} 18... Rg7 {[%clk 0:01:56.6]} 19. Bxe4 {[%clk 0:02:19]} 19...
dxe4 {[%clk 0:01:55.4]} 20. Qd2 {[%clk 0:01:51.4]} 20... Bd7 {[%clk 0:01:47.6]}
21. Rae1 {[%clk 0:01:42.5]} 21... g4 {[%clk 0:01:42]} 22. c4 {[%clk 0:01:37.4]}
22... Rd8 {[%clk 0:01:41.2]} 23. Qe3 {[%clk 0:01:37.4]} 23... Be8 {[%clk
0:01:31.4]} 24. Rd1 {[%clk 0:01:37.5]} 24... h5 {[%clk 0:01:16.4]} 25. Rd2
{[%clk 0:01:36.2]} 25... h4 {[%clk 0:01:15.9]} 26. Rfd1 {[%clk 0:01:35.1]} 26...
Bh5 {[%clk 0:01:11.7]} 27. Rc1 {[%clk 0:01:32.1]} 27... Rc7 {[%clk 0:01:07.9]}
28. b3 {[%clk 0:01:28.7]} 28... b6 {[%clk 0:01:00.9]} 29. g3 {[%clk 0:01:25.5]}
29... hxg3 {[%clk 0:00:47.3]} 30. hxg3 {[%clk 0:01:25.1]} 30... Rh7 {[%clk
0:00:44.5]} 31. Rh2 {[%clk 0:01:25.5]} 31... Kg7 {[%clk 0:00:44]} 32. Kf2 {[%clk
0:01:24.2]} 32... Rdh8 {[%clk 0:00:42.1]} 33. Rch1 {[%clk 0:01:24.8]} 33... Be8
{[%clk 0:00:41.3]} 34. Rxh7+ {[%clk 0:01:23.7]} 34... Rxh7 {[%clk 0:00:42.2]}
35. Rxh7+ {[%clk 0:01:24]} 35... Kxh7 {[%clk 0:00:43.1]} 36. Kg1 {[%clk
0:01:16]} 36... Qe7 {[%clk 0:00:39.1]} 37. Qd2 {[%clk 0:01:15.6]} 37... Kg7
{[%clk 0:00:32.6]} 38. Kf1 {[%clk 0:01:12.2]} 38... Qa3 {[%clk 0:00:30.7]} 39.
Ke1 {[%clk 0:01:04.4]} 39... Qf8 {[%clk 0:00:19.8]} 40. Kd1 {[%clk 0:01:00.7]}
40... Qh8 {[%clk 0:00:19.4]} 41. Kc2 {[%clk 0:00:47]} 41... Qh3 {[%clk 0:00:17]}
42. Qc3 {[%clk 0:00:44]} 42... Qg2+ {[%clk 0:00:16.5]} 43. Kb1 {[%clk
0:00:44.5]} 43... Qf1+ {[%clk 0:00:16.6]} 44. Kb2 {[%clk 0:00:44.5]} 44... Qf2+
{[%clk 0:00:15.4]} 45. Ka3 {[%clk 0:00:44.2]} 45... Kg8 {[%clk 0:00:13.7]} 46.
b4 {[%clk 0:00:43.5]} 46... e3 {[%clk 0:00:11.8]} 47. d5 {[%clk 0:00:36.9]}
47... exd5 {[%clk 0:00:10]} 48. Qd4 {[%clk 0:00:35.1]} 48... dxc4 {[%clk
0:00:04.3]} 49. Qd8 {[%clk 0:00:29.9]} 49... Kf8 {[%clk 0:00:02.8]} 50. Qf6+
{[%clk 0:00:28.1]} 50... Kg8 {[%clk 0:00:02.6]} 51. Qe6+ {[%clk 0:00:27.9]}
51... Kf8 {[%clk 0:00:02.8]} 52. Qxf5+ {[%clk 0:00:28.3]} 52... Kg8 {[%clk
0:00:02.8]} 53. Qe6+ {[%clk 0:00:28.5]} 53... Kf8 {[%clk 0:00:03.2]} 54. Qf6+
{[%clk 0:00:24.2]} 54... Kg8 {[%clk 0:00:02.6]} 55. Qe7 {[%clk 0:00:24.7]} 1-0

[Event "*** Titled Tuesday Blitz"]
[Site "Chess.com"]
[Date "2020.05.12"]
[Round "3"]
[White "PavelShkapenko"]
[Black "alishersuleymenov"]
[Result "1-0"]
[WhiteElo "2638"]
[BlackElo "2816"]
[TimeControl "180+1"]
[EndTime "10:28:57 PDT"]
[Termination "PavelShkapenko won by resignation"]

1. e4 {[%clk 0:02:56.9]} 1... c5 {[%clk 0:03:00]} 2. c3 {[%clk 0:02:49.8]} 2...
Nf6 {[%clk 0:02:58.7]} 3. e5 {[%clk 0:02:48.2]} 3... Nd5 {[%clk 0:02:52.8]} 4.
d4 {[%clk 0:02:48.1]} 4... cxd4 {[%clk 0:02:51.6]} 5. cxd4 {[%clk 0:02:48.1]}
5... e6 {[%clk 0:02:51.3]} 6. Nc3 {[%clk 0:02:47.4]} 6... Nxc3 {[%clk
0:02:49.5]} 7. bxc3 {[%clk 0:02:47.6]} 7... b6 {[%clk 0:02:49.7]} 8. f4 {[%clk
0:02:45.6]} 8... Bb7 {[%clk 0:02:48.4]} 9. Nf3 {[%clk 0:02:45.7]} 9... Be7
{[%clk 0:02:37.4]} 10. Bd3 {[%clk 0:02:44]} 10... d6 {[%clk 0:02:24.1]} 11. O-O
{[%clk 0:02:43.6]} 11... Nd7 {[%clk 0:02:22.7]} 12. Bd2 {[%clk 0:02:41.2]} 12...
g6 {[%clk 0:02:02.1]} 13. Qe1 {[%clk 0:02:39.1]} 13... O-O {[%clk 0:01:58.1]}
14. Qg3 {[%clk 0:02:38.6]} 14... Kh8 {[%clk 0:01:51.4]} 15. c4 {[%clk
0:02:07.9]} 15... Bxf3 {[%clk 0:01:43.4]} 16. Qxf3 {[%clk 0:01:59.3]} 16... Rc8
{[%clk 0:01:43]} 17. Bc3 {[%clk 0:01:48.7]} 17... dxe5 {[%clk 0:01:37.7]} 18.
fxe5 {[%clk 0:01:46.7]} 18... b5 {[%clk 0:01:29.9]} 19. c5 {[%clk 0:01:13.2]}
19... b4 {[%clk 0:01:30.3]} 20. Bb2 {[%clk 0:01:04.5]} 20... Kg8 {[%clk
0:01:26.3]} 21. Kh1 {[%clk 0:01:00.3]} 21... Nb8 {[%clk 0:01:24.3]} 22. Be4
{[%clk 0:00:55.4]} 22... a5 {[%clk 0:01:23.4]} 23. Rad1 {[%clk 0:00:55]} 23...
Qc7 {[%clk 0:01:18.6]} 24. Bc1 {[%clk 0:00:52.2]} 24... Kg7 {[%clk 0:01:01.3]}
25. Qh3 {[%clk 0:00:48.2]} 25... h5 {[%clk 0:01:00.1]} 26. Qe3 {[%clk
0:00:41.7]} 26... Rh8 {[%clk 0:00:57.4]} 27. Qg3 {[%clk 0:00:27.8]} 27... Rcf8
{[%clk 0:00:53.4]} 28. d5 {[%clk 0:00:20.5]} 28... exd5 {[%clk 0:00:50]} 29.
Rxd5 {[%clk 0:00:20]} 29... Rhg8 {[%clk 0:00:35.3]} 30. Bb2 {[%clk 0:00:19.7]}
30... Kh6 {[%clk 0:00:23.7]} 31. Qe3+ {[%clk 0:00:18.5]} 31... Bg5 {[%clk
0:00:23.4]} 32. Qh3 {[%clk 0:00:17.6]} 32... Nc6 {[%clk 0:00:19.7]} 33. Rd6
{[%clk 0:00:17]} 33... Nxe5 {[%clk 0:00:07.8]} 34. Bxe5 {[%clk 0:00:16.1]} 34...
Qxc5 {[%clk 0:00:08.2]} 35. Rd5 {[%clk 0:00:15.8]} 35... Qc4 {[%clk 0:00:06]}
36. Qf3 {[%clk 0:00:15.8]} 36... f5 {[%clk 0:00:03.2]} 37. Bd3 {[%clk
0:00:15.6]} 37... Qxa2 {[%clk 0:00:02.6]} 38. Bf4 {[%clk 0:00:15.6]} 38... Bxf4
{[%clk 0:00:02.5]} 39. Qxf4+ {[%clk 0:00:15.6]} 39... Kg7 {[%clk 0:00:01.8]} 40.
Rd7+ {[%clk 0:00:13.7]} 40... Rf7 {[%clk 0:00:02.2]} 41. Qd4+ {[%clk 0:00:12.3]}
41... Kh6 {[%clk 0:00:01.7]} 42. Rxf7 {[%clk 0:00:11.9]} 42... Qxf7 {[%clk
0:00:02.6]} 43. Bc4 {[%clk 0:00:12.2]} 43... Qf8 {[%clk 0:00:03.1]} 44. Qd2+
{[%clk 0:00:12.3]} 44... Kh7 {[%clk 0:00:02.1]} 45. Bxg8+ {[%clk 0:00:12.2]}
45... Qxg8 {[%clk 0:00:03]} 46. Qd7+ {[%clk 0:00:10.8]} 46... Kh6 {[%clk
0:00:03.1]} 47. Qd2+ {[%clk 0:00:10.1]} 47... Kh7 {[%clk 0:00:03.3]} 48. Rc1
{[%clk 0:00:10]} 48... Qe6 {[%clk 0:00:02.7]} 49. Rc7+ {[%clk 0:00:09.2]} 1-0

[Event "*** Titled Tuesday Blitz"]
[Site "Chess.com"]
[Date "2020.05.12"]
[Round "3"]
[White "Indianlad"]
[Black "Blitzstream"]
[Result "0-1"]
[WhiteElo "2927"]
[BlackElo "2675"]
[TimeControl "180+1"]
[EndTime "10:28:58 PDT"]
[Termination "Blitzstream won by resignation"]

1. Nf3 {[%clk 0:03:00.9]} 1... d5 {[%clk 0:03:00.2]} 2. e3 {[%clk 0:03:00.7]}
2... Nf6 {[%clk 0:03:00.7]} 3. c4 {[%clk 0:03:00.7]} 3... c6 {[%clk 0:03:00.8]}
4. Nc3 {[%clk 0:03:00.3]} 4... e6 {[%clk 0:03:00]} 5. b3 {[%clk 0:02:59.9]} 5...
Nbd7 {[%clk 0:03:00.2]} 6. Bb2 {[%clk 0:03:00.3]} 6... Bd6 {[%clk 0:03:00.7]} 7.
Qc2 {[%clk 0:02:58.3]} 7... O-O {[%clk 0:03:01.2]} 8. d4 {[%clk 0:02:51.6]} 8...
Qe7 {[%clk 0:03:01]} 9. Be2 {[%clk 0:02:49.6]} 9... Re8 {[%clk 0:03:00.8]} 10.
O-O {[%clk 0:02:37.3]} 10... dxc4 {[%clk 0:03:01]} 11. Bxc4 {[%clk 0:02:34.8]}
11... b5 {[%clk 0:02:56.2]} 12. Bd3 {[%clk 0:02:35.4]} 12... Bb7 {[%clk
0:02:56.3]} 13. e4 {[%clk 0:02:35.3]} 13... e5 {[%clk 0:02:56.2]} 14. Ne2 {[%clk
0:02:35.7]} 14... Rad8 {[%clk 0:02:26.8]} 15. a4 {[%clk 0:02:35.8]} 15... b4
{[%clk 0:02:15.2]} 16. dxe5 {[%clk 0:02:34.9]} 16... Nxe5 {[%clk 0:02:14.9]} 17.
Nxe5 {[%clk 0:02:35.6]} 17... Bxe5 {[%clk 0:02:15.3]} 18. Bxe5 {[%clk
0:02:36.3]} 18... Qxe5 {[%clk 0:02:15.5]} 19. f4 {[%clk 0:02:37]} 19... Qa5
{[%clk 0:01:57.5]} 20. e5 {[%clk 0:02:35.3]} 20... Ng4 {[%clk 0:01:54.7]} 21.
Bxh7+ {[%clk 0:02:13.9]} 21... Kh8 {[%clk 0:01:54.6]} 22. Qf5 {[%clk 0:02:02.7]}
22... Nh6 {[%clk 0:01:29.9]} 23. Qc2 {[%clk 0:01:43.7]} 23... Qb6+ {[%clk
0:01:16.3]} 24. Kh1 {[%clk 0:01:42.5]} 24... Qe3 {[%clk 0:01:16.9]} 25. Qe4
{[%clk 0:01:30.1]} 25... Qxb3 {[%clk 0:01:00.4]} 26. Rab1 {[%clk 0:01:26.1]}
26... Qa2 {[%clk 0:00:52.2]} 27. Nc1 {[%clk 0:01:13.8]} 27... Qxa4 {[%clk
0:00:47.3]} 28. Nb3 {[%clk 0:00:49.8]} 28... Ba6 {[%clk 0:00:44.5]} 29. Nc5
{[%clk 0:00:46.5]} 29... Qa5 {[%clk 0:00:37.8]} 30. Nxa6 {[%clk 0:00:47]} 30...
Qxa6 {[%clk 0:00:38.7]} 31. Qc2 {[%clk 0:00:39.5]} 31... c5 {[%clk 0:00:38.5]}
32. Be4 {[%clk 0:00:38]} 32... Qb6 {[%clk 0:00:30.4]} 33. Rfc1 {[%clk
0:00:36.1]} 33... Rc8 {[%clk 0:00:28.4]} 34. Qc4 {[%clk 0:00:35.3]} 34... Red8
{[%clk 0:00:27.8]} 35. Bd5 {[%clk 0:00:33.2]} 35... Ng4 {[%clk 0:00:21.4]} 36.
Bxf7 {[%clk 0:00:33.4]} 36... Qh6 {[%clk 0:00:20.7]} 37. h3 {[%clk 0:00:32.4]}
37... Qh4 {[%clk 0:00:19.3]} 38. Qe2 {[%clk 0:00:26.9]} 38... Nh6 {[%clk
0:00:16.7]} 39. Bc4 {[%clk 0:00:23.1]} 39... Nf5 {[%clk 0:00:16.6]} 40. Qg4
{[%clk 0:00:19.9]} 40... Qxg4 {[%clk 0:00:15.4]} 41. hxg4 {[%clk 0:00:20.8]}
41... Ne3 {[%clk 0:00:15.8]} 42. Bf7 {[%clk 0:00:18.4]} 42... c4 {[%clk
0:00:13.4]} 43. e6 {[%clk 0:00:18.5]} 43... b3 {[%clk 0:00:11.5]} 44. e7 {[%clk
0:00:18.6]} 44... Re8 {[%clk 0:00:12]} 45. Bxe8 {[%clk 0:00:16.8]} 45... Rxe8
{[%clk 0:00:12.9]} 46. Rc3 {[%clk 0:00:11.7]} 46... Rxe7 {[%clk 0:00:13.2]} 47.
Re1 {[%clk 0:00:11.4]} 47... a5 {[%clk 0:00:13.6]} 48. Rxc4 {[%clk 0:00:09]}
48... Nxc4 {[%clk 0:00:12.6]} 49. Rxe7 {[%clk 0:00:08.9]} 49... b2 {[%clk
0:00:12.5]} 50. Rb7 {[%clk 0:00:09.1]} 50... a4 {[%clk 0:00:12.9]} 51. f5 {[%clk
0:00:09.6]} 51... a3 {[%clk 0:00:12.6]} 52. f6 {[%clk 0:00:10.3]} 52... gxf6
{[%clk 0:00:12.5]} 0-1

[Event "*** Titled Tuesday Blitz"]
[Site "Chess.com"]
[Date "2020.05.12"]
[Round "3"]
[White "Orest_Vovk"]
[Black "Zurability"]
[Result "1-0"]
[WhiteElo "2427"]
[BlackElo "2645"]
[TimeControl "180+1"]
[EndTime "10:28:58 PDT"]
[Termination "Orest_Vovk won by resignation"]

1. e4 {[%clk 0:03:00.9]} 1... c5 {[%clk 0:02:56.6]} 2. Be2 {[%clk 0:03:00.3]}
2... Nc6 {[%clk 0:02:54.2]} 3. f4 {[%clk 0:02:59.9]} 3... g6 {[%clk 0:02:47.5]}
4. Nf3 {[%clk 0:02:59.6]} 4... Bg7 {[%clk 0:02:47.9]} 5. d3 {[%clk 0:02:59.5]}
5... d6 {[%clk 0:02:48.2]} 6. c3 {[%clk 0:02:57.2]} 6... Nf6 {[%clk 0:02:48.2]}
7. O-O {[%clk 0:02:56.7]} 7... O-O {[%clk 0:02:48.8]} 8. h3 {[%clk 0:02:53.7]}
8... c4 {[%clk 0:02:44.9]} 9. Be3 {[%clk 0:02:52.2]} 9... cxd3 {[%clk
0:02:43.6]} 10. Bxd3 {[%clk 0:02:53.1]} 10... Nd7 {[%clk 0:02:42.1]} 11. Nbd2
{[%clk 0:02:51.8]} 11... Nc5 {[%clk 0:02:37.7]} 12. Bc2 {[%clk 0:02:50.6]} 12...
b6 {[%clk 0:02:38.2]} 13. Nb3 {[%clk 0:02:40.7]} 13... Bb7 {[%clk 0:02:34.8]}
14. Nxc5 {[%clk 0:02:37.7]} 14... bxc5 {[%clk 0:02:33.7]} 15. Qd2 {[%clk
0:02:34.2]} 15... Qa5 {[%clk 0:02:30.2]} 16. f5 {[%clk 0:02:32.5]} 16... Rab8
{[%clk 0:02:26.7]} 17. Bh6 {[%clk 0:02:31.8]} 17... Ba6 {[%clk 0:02:26.6]} 18.
fxg6 {[%clk 0:02:09.9]} 18... hxg6 {[%clk 0:02:23.5]} 19. Rfb1 {[%clk
0:01:56.7]} 19... Qb5 {[%clk 0:01:57.3]} 20. Qg5 {[%clk 0:01:34.5]} 20... c4
{[%clk 0:01:50]} 21. Qh4 {[%clk 0:01:27.5]} 21... Bxh6 {[%clk 0:01:14.9]} 22.
Qxh6 {[%clk 0:01:26.5]} 22... Qh5 {[%clk 0:01:15.8]} 23. Qxh5 {[%clk 0:01:26]}
23... gxh5 {[%clk 0:01:16.1]} 24. b4 {[%clk 0:01:26.6]} 24... cxb3 {[%clk
0:01:02.6]} 25. axb3 {[%clk 0:01:26.6]} 25... Bc8 {[%clk 0:01:00.7]} 26. Nd4
{[%clk 0:01:20.2]} 26... Ne5 {[%clk 0:00:57.1]} 27. Rxa7 {[%clk 0:01:15.7]}
27... e6 {[%clk 0:00:47.5]} 28. Rba1 {[%clk 0:01:02.3]} 28... Bb7 {[%clk
0:00:39.2]} 29. R1a5 {[%clk 0:00:56.8]} 29... Rfc8 {[%clk 0:00:26]} 30. c4
{[%clk 0:00:50.7]} 30... Rc5 {[%clk 0:00:24]} 31. Rb5 {[%clk 0:00:20.1]} 31...
Rxb5 {[%clk 0:00:22.3]} 32. Nxb5 {[%clk 0:00:20.9]} 32... Nc6 {[%clk 0:00:22.8]}
33. Ra1 {[%clk 0:00:18.5]} 33... Nb4 {[%clk 0:00:22.2]} 34. Bb1 {[%clk
0:00:15.4]} 34... Rd8 {[%clk 0:00:20.7]} 35. Ra7 {[%clk 0:00:14.1]} 35... Bc6
{[%clk 0:00:19.2]} 36. Ra4 {[%clk 0:00:13.1]} 36... d5 {[%clk 0:00:12.1]} 37.
exd5 {[%clk 0:00:11.3]} 37... exd5 {[%clk 0:00:12.7]} 38. Rxb4 {[%clk
0:00:11.7]} 38... d4 {[%clk 0:00:13.4]} 39. Bd3 {[%clk 0:00:11.5]} 39... Re8
{[%clk 0:00:13.1]} 40. Nxd4 {[%clk 0:00:09.7]} 40... Bd7 {[%clk 0:00:13.7]} 41.
Bf5 {[%clk 0:00:08.1]} 41... Bxf5 {[%clk 0:00:13.2]} 42. Nxf5 {[%clk 0:00:09]}
42... Re5 {[%clk 0:00:13.9]} 43. Rb5 {[%clk 0:00:08.4]} 43... Re1+ {[%clk
0:00:14.2]} 44. Kf2 {[%clk 0:00:08.8]} 44... Rb1 {[%clk 0:00:14.7]} 45. Ne3
{[%clk 0:00:09]} 45... Rb2+ {[%clk 0:00:15.1]} 46. Kf3 {[%clk 0:00:09.5]} 46...
Kg7 {[%clk 0:00:16]} 47. Rxh5 {[%clk 0:00:09.3]} 47... Rb1 {[%clk 0:00:16.4]}
48. Rb5 {[%clk 0:00:08.9]} 48... Kg6 {[%clk 0:00:17]} 49. c5 {[%clk 0:00:09.3]}
49... Rc1 {[%clk 0:00:17.2]} 50. Rb6+ {[%clk 0:00:08.8]} 50... Kg7 {[%clk
0:00:16.4]} 51. c6 {[%clk 0:00:09.7]} 51... Rc3 {[%clk 0:00:17.1]} 52. b4 {[%clk
0:00:09.7]} 52... Kf8 {[%clk 0:00:17.6]} 53. b5 {[%clk 0:00:09.9]} 53... Ke8
{[%clk 0:00:18.1]} 54. Rb8+ {[%clk 0:00:09.3]} 54... Ke7 {[%clk 0:00:18.7]} 55.
Rb7+ {[%clk 0:00:10.2]} 55... Kd6 {[%clk 0:00:19.3]} 56. c7 {[%clk 0:00:09.9]}
56... Rb3 {[%clk 0:00:20.2]} 57. b6 {[%clk 0:00:09.9]} 57... Kd7 {[%clk
0:00:20.5]} 58. Rb8 {[%clk 0:00:10.2]} 58... Rc3 {[%clk 0:00:21.2]} 59. Rd8+
{[%clk 0:00:10.2]} 59... Ke7 {[%clk 0:00:21.8]} 60. c8=Q {[%clk 0:00:11.1]}
60... Rxc8 {[%clk 0:00:22.3]} 61. Rxc8 {[%clk 0:00:11.4]} 61... Kd7 {[%clk
0:00:23.2]} 62. b7 {[%clk 0:00:11.8]} 1-0

[Event "*** Titled Tuesday Blitz"]
[Site "Chess.com"]
[Date "2020.05.12"]
[Round "3"]
[White "SoltaniciR"]
[Black "archess2"]
[Result "1-0"]
[WhiteElo "2619"]
[BlackElo "2313"]
[TimeControl "180+1"]
[EndTime "10:28:59 PDT"]
[Termination "SoltaniciR won by resignation"]

1. e4 {[%clk 0:03:00.9]} 1... c6 {[%clk 0:02:59.7]} 2. c4 {[%clk 0:03:00.4]}
2... d5 {[%clk 0:03:00.6]} 3. exd5 {[%clk 0:03:00.6]} 3... cxd5 {[%clk
0:03:00.9]} 4. cxd5 {[%clk 0:03:01.5]} 4... Nf6 {[%clk 0:03:01.5]} 5. Qa4+
{[%clk 0:03:01.3]} 5... Nbd7 {[%clk 0:03:00.6]} 6. Nc3 {[%clk 0:03:01.3]} 6...
g6 {[%clk 0:03:00.7]} 7. Nf3 {[%clk 0:03:01.4]} 7... Bg7 {[%clk 0:03:00.8]} 8.
Bc4 {[%clk 0:03:02]} 8... a6 {[%clk 0:02:58.8]} 9. Qa3 {[%clk 0:03:00.7]} 9...
O-O {[%clk 0:02:58.6]} 10. d3 {[%clk 0:03:00.5]} 10... b5 {[%clk 0:02:57.4]} 11.
Bxb5 {[%clk 0:02:59.5]} 11... Bb7 {[%clk 0:02:56.6]} 12. Bc6 {[%clk 0:02:30.7]}
12... Qb6 {[%clk 0:02:48.7]} 13. Be3 {[%clk 0:02:27.6]} 13... Qc7 {[%clk
0:02:45.8]} 14. O-O {[%clk 0:02:10.9]} 14... Bxc6 {[%clk 0:02:38.2]} 15. dxc6
{[%clk 0:02:11]} 15... Qxc6 {[%clk 0:02:31.3]} 16. Qxe7 {[%clk 0:02:10.9]} 16...
Rfe8 {[%clk 0:02:26.2]} 17. Qa3 {[%clk 0:02:09.8]} 17... Ng4 {[%clk 0:02:15.9]}
18. Rfe1 {[%clk 0:02:03.9]} 18... Rac8 {[%clk 0:02:11.4]} 19. d4 {[%clk
0:01:43.4]} 19... Nxe3 {[%clk 0:02:03.9]} 20. Rxe3 {[%clk 0:01:43.2]} 20... Rxe3
{[%clk 0:01:59.8]} 21. fxe3 {[%clk 0:01:44.1]} 21... Bh6 {[%clk 0:01:59.2]} 22.
Re1 {[%clk 0:01:33.8]} 22... Re8 {[%clk 0:01:51.4]} 23. e4 {[%clk 0:01:33.5]}
23... Nf6 {[%clk 0:01:47.6]} 24. e5 {[%clk 0:01:06.8]} 24... Ng4 {[%clk
0:01:43.6]} 25. Qc5 {[%clk 0:00:52.4]} 25... Be3+ {[%clk 0:01:40.2]} 26. Kf1
{[%clk 0:00:51.7]} 26... Qxc5 {[%clk 0:01:36.2]} 27. dxc5 {[%clk 0:00:51.6]}
27... Bxc5 {[%clk 0:01:34.3]} 28. Nd5 {[%clk 0:00:51.3]} 28... Rd8 {[%clk
0:01:23.7]} 29. Nf6+ {[%clk 0:00:27.9]} 29... Nxf6 {[%clk 0:01:17.2]} 30. exf6
{[%clk 0:00:28.8]} 30... h6 {[%clk 0:01:13.4]} 31. Rc1 {[%clk 0:00:28.5]} 31...
Be3 {[%clk 0:01:03.7]} 32. Rc6 {[%clk 0:00:28]} 32... a5 {[%clk 0:01:02.3]} 33.
Ke2 {[%clk 0:00:27.9]} 33... Bf4 {[%clk 0:01:00.8]} 34. g3 {[%clk 0:00:26.3]}
34... Bd6 {[%clk 0:00:54.6]} 35. Ra6 {[%clk 0:00:23.8]} 35... Bb4 {[%clk
0:00:52.8]} 36. a3 {[%clk 0:00:23.2]} 36... Re8+ {[%clk 0:00:52.7]} 37. Kd3
{[%clk 0:00:22.1]} 37... Bc5 {[%clk 0:00:53]} 38. Rxa5 {[%clk 0:00:19.4]} 38...
Bb6 {[%clk 0:00:52.6]} 39. Rb5 {[%clk 0:00:18.2]} 39... Bf2 {[%clk 0:00:51.6]}
40. Ne5 {[%clk 0:00:12]} 40... Rd8+ {[%clk 0:00:51.3]} 41. Ke4 {[%clk
0:00:11.1]} 41... Bd4 {[%clk 0:00:50.4]} 42. b4 {[%clk 0:00:11.2]} 42... Bxe5
{[%clk 0:00:49.6]} 43. Rxe5 {[%clk 0:00:10.7]} 43... g5 {[%clk 0:00:48.6]} 44.
b5 {[%clk 0:00:09.6]} 44... Kh7 {[%clk 0:00:48.8]} 45. Rc5 {[%clk 0:00:08.8]}
45... Kg6 {[%clk 0:00:48.6]} 46. Rc6 {[%clk 0:00:09.1]} 46... Ra8 {[%clk
0:00:48.7]} 47. Rc3 {[%clk 0:00:07.5]} 47... Kxf6 {[%clk 0:00:46.8]} 48. Kd5
{[%clk 0:00:07.7]} 48... Ke7 {[%clk 0:00:47.2]} 49. b6 {[%clk 0:00:06.4]} 49...
Kd7 {[%clk 0:00:47.3]} 50. Rc7+ {[%clk 0:00:05.4]} 50... Kd8 {[%clk 0:00:45.6]}
51. Ra7 {[%clk 0:00:06.3]} 51... Rb8 {[%clk 0:00:44.8]} 52. Kc6 {[%clk
0:00:06.4]} 52... Rc8+ {[%clk 0:00:41.5]} 53. Kb5 {[%clk 0:00:06.9]} 53... f5
{[%clk 0:00:40.2]} 54. a4 {[%clk 0:00:06.9]} 54... Ke8 {[%clk 0:00:38.7]} 55. a5
{[%clk 0:00:06.4]} 55... f4 {[%clk 0:00:37.7]} 56. gxf4 {[%clk 0:00:06.4]} 56...
gxf4 {[%clk 0:00:37.7]} 57. b7 {[%clk 0:00:07.3]} 57... Rd8 {[%clk 0:00:37.7]}
58. Ra8 {[%clk 0:00:07.4]} 58... f3 {[%clk 0:00:38.1]} 59. Rxd8+ {[%clk
0:00:06.9]} 59... Kxd8 {[%clk 0:00:38.7]} 60. b8=Q+ {[%clk 0:00:07.8]} 60... Kd7
{[%clk 0:00:39.1]} 61. Qf4 {[%clk 0:00:08.7]} 1-0

[Event "*** Titled Tuesday Blitz"]
[Site "Chess.com"]
[Date "2020.05.12"]
[Round "3"]
[White "ErikRonka"]
[Black "DrVelja"]
[Result "0-1"]
[WhiteElo "2427"]
[BlackElo "2737"]
[TimeControl "180+1"]
[EndTime "10:29:00 PDT"]
[Termination "DrVelja won by resignation"]

1. e4 {[%clk 0:03:00.9]} 1... c5 {[%clk 0:02:57.5]} 2. Nf3 {[%clk 0:03:01.1]}
2... Nc6 {[%clk 0:02:57.2]} 3. d4 {[%clk 0:03:00.7]} 3... cxd4 {[%clk
0:02:58.1]} 4. Nxd4 {[%clk 0:03:01.6]} 4... Nf6 {[%clk 0:02:58.3]} 5. Nc3 {[%clk
0:03:01.5]} 5... e5 {[%clk 0:02:58.9]} 6. Ndb5 {[%clk 0:03:01.8]} 6... d6 {[%clk
0:02:59.2]} 7. Bg5 {[%clk 0:03:02.2]} 7... a6 {[%clk 0:02:59.3]} 8. Na3 {[%clk
0:03:02.5]} 8... b5 {[%clk 0:03:00.2]} 9. Bxf6 {[%clk 0:03:02.8]} 9... gxf6
{[%clk 0:03:01.1]} 10. Nd5 {[%clk 0:03:03.3]} 10... f5 {[%clk 0:02:59.4]} 11.
Bd3 {[%clk 0:03:02.9]} 11... Be6 {[%clk 0:02:59.6]} 12. c3 {[%clk 0:03:03.1]}
12... Bg7 {[%clk 0:02:55]} 13. Nxb5 {[%clk 0:03:02.7]} 13... axb5 {[%clk
0:02:52.6]} 14. Bxb5 {[%clk 0:03:02.6]} 14... Bd7 {[%clk 0:02:51.7]} 15. exf5
{[%clk 0:03:02.6]} 15... O-O {[%clk 0:02:51.3]} 16. O-O {[%clk 0:03:00]} 16...
e4 {[%clk 0:02:51.3]} 17. a4 {[%clk 0:02:26.6]} 17... Ne5 {[%clk 0:02:30.3]} 18.
Ne3 {[%clk 0:02:22.8]} 18... Bxb5 {[%clk 0:02:17.8]} 19. axb5 {[%clk 0:02:21.8]}
19... Rxa1 {[%clk 0:02:17.3]} 20. Qxa1 {[%clk 0:02:22.7]} 20... d5 {[%clk
0:01:37.1]} 21. Qa7 {[%clk 0:01:11.9]} 21... Nd3 {[%clk 0:01:25.4]} 22. Qb7
{[%clk 0:01:03.2]} 22... d4 {[%clk 0:01:14.1]} 23. Nd5 {[%clk 0:00:46.9]} 23...
Qg5 {[%clk 0:00:54.4]} 24. f6 {[%clk 0:00:44]} 24... Bxf6 {[%clk 0:00:38.4]} 25.
Nxf6+ {[%clk 0:00:42.3]} 25... Qxf6 {[%clk 0:00:39.3]} 26. Qxe4 {[%clk
0:00:42.6]} 26... Nxb2 {[%clk 0:00:33.4]} 27. cxd4 {[%clk 0:00:40.8]} 27... Nc4
{[%clk 0:00:32.1]} 28. Rc1 {[%clk 0:00:34.4]} 28... Nd6 {[%clk 0:00:27.3]} 29.
Qg4+ {[%clk 0:00:32.9]} 29... Kh8 {[%clk 0:00:27.3]} 30. h3 {[%clk 0:00:32.1]}
30... Rg8 {[%clk 0:00:27.4]} 31. Qe2 {[%clk 0:00:31.9]} 31... Qxd4 {[%clk
0:00:26.2]} 32. Rd1 {[%clk 0:00:29.4]} 32... Qf6 {[%clk 0:00:22.4]} 33. b6
{[%clk 0:00:27.2]} 33... Rb8 {[%clk 0:00:12.6]} 34. Rb1 {[%clk 0:00:18.8]} 34...
Qd4 {[%clk 0:00:09.5]} 35. Qf3 {[%clk 0:00:12.6]} 35... Rxb6 {[%clk 0:00:07.2]}
36. Rd1 {[%clk 0:00:09.3]} 36... Qe5 {[%clk 0:00:06.6]} 37. Qg4 {[%clk
0:00:05.7]} 37... Ne8 {[%clk 0:00:04.4]} 38. Qf3 {[%clk 0:00:04.5]} 38... Rf6
{[%clk 0:00:03.4]} 39. Qd3 {[%clk 0:00:04.3]} 39... Kg7 {[%clk 0:00:03.4]} 40.
Rf1 {[%clk 0:00:04.5]} 40... Rd6 {[%clk 0:00:03.8]} 41. Qf3 {[%clk 0:00:04.2]}
41... Rg6 {[%clk 0:00:04.5]} 42. Qd3 {[%clk 0:00:03.7]} 42... Nf6 {[%clk
0:00:05]} 43. g3 {[%clk 0:00:03.9]} 43... Nh5 {[%clk 0:00:05.5]} 44. Kg2 {[%clk
0:00:03.2]} 44... Nf4+ {[%clk 0:00:05.6]} 0-1